[Event "Titled Tuesday Blitz June 21 Late 2022"]
[White "Zhu, Jiner"]
[Black "Wagner, Dinara"]
[WhiteFideId "8608059"]
[BlackFideId "24157570"]
[WhiteElo "2281"]
[BlackElo "2216"]
[Result "1-0"]
[Round "11"]
[TimeControl "180+1"]
[Date "2022.06.21"]
[WhiteClock "0:00:49"]
[BlackClock "0:00:08"]

1. e4 {[%clk 0:03:00]}  c5 {[%clk 0:02:59]} 2. Nf3 {[%clk 0:03:00]}  d6 {[%clk 0:02:59]} 3. d4 {[%clk 0:03:01]}  cxd4 {[%clk 0:02:58]} 4. Nxd4 {[%clk 0:03:02]}  Nf6 {[%clk 0:02:57]} 5. Nc3 {[%clk 0:03:02]}  a6 {[%clk 0:02:57]} 6. Be3 {[%clk 0:03:02]}  e5 {[%clk 0:02:56]} 7. Nf3 {[%clk 0:03:02]}  Be7 {[%clk 0:02:53]} 8. Bc4 {[%clk 0:03:02]}  Nc6 {[%clk 0:02:40]} 9. O-O {[%clk 0:03:01]}  Be6 {[%clk 0:02:35]} 10. Bb3 {[%clk 0:03:01]}  O-O {[%clk 0:02:34]} 11. Bg5 {[%clk 0:03:00]}  Nd7 {[%clk 0:02:33]} 12. Bxe7 {[%clk 0:03:00]}  Qxe7 {[%clk 0:02:33]} 13. Nd5 {[%clk 0:03:00]}  Qd8 {[%clk 0:02:33]} 14. Qe2 {[%clk 0:02:55]}  Na5 {[%clk 0:02:31]} 15. Rfd1 {[%clk 0:02:53]}  Nxb3 {[%clk 0:02:30]} 16. axb3 {[%clk 0:02:53]}  Rc8 {[%clk 0:02:28]} 17. c3 {[%clk 0:02:51]}  Kh8 {[%clk 0:02:11]} 18. b4 {[%clk 0:02:44]}  f5 {[%clk 0:02:04]} 19. exf5 {[%clk 0:02:42]}  Bxf5 {[%clk 0:02:04]} 20. Nd2 {[%clk 0:02:41]}  Qg5 {[%clk 0:01:58]} 21. Ne4 {[%clk 0:02:32]}  Bxe4 {[%clk 0:01:22]} 22. Qxe4 {[%clk 0:02:32]}  Rf7 {[%clk 0:01:22]} 23. f3 {[%clk 0:02:30]}  Rcf8 {[%clk 0:01:22]} 24. Kh1 {[%clk 0:02:30]}  Rf5 {[%clk 0:01:14]} 25. Rd3 {[%clk 0:02:23]}  Qh6 {[%clk 0:01:13]} 26. Rad1 {[%clk 0:02:22]}  Rh5 {[%clk 0:01:13]} 27. h3 {[%clk 0:02:22]}  Rh4 {[%clk 0:01:02]} 28. Qe3 {[%clk 0:02:12]}  e4 {[%clk 0:00:58]} 29. Qxh6 {[%clk 0:02:07]}  Rxh6 {[%clk 0:00:57]} 30. fxe4 {[%clk 0:02:08]}  Ne5 {[%clk 0:00:57]} 31. R3d2 {[%clk 0:02:01]}  Ng4 {[%clk 0:00:56]} 32. Kg1 {[%clk 0:01:58]}  Ne5 {[%clk 0:00:55]} 33. Ne3 {[%clk 0:01:54]}  Rff6 {[%clk 0:00:36]} 34. Nf5 {[%clk 0:01:51]}  Rhg6 {[%clk 0:00:35]} 35. Rxd6 {[%clk 0:01:49]}  Rf8 {[%clk 0:00:22]} 36. Rd8 {[%clk 0:01:42]}  Rf6 {[%clk 0:00:23]} 37. R1d5 {[%clk 0:01:27]}  Nc4 {[%clk 0:00:21]} 38. b3 {[%clk 0:01:25]}  Nb6 {[%clk 0:00:20]} 39. Rxf8+ {[%clk 0:01:21]}  Rxf8 {[%clk 0:00:19]} 40. Rd6 {[%clk 0:01:22]}  Nc8 {[%clk 0:00:17]} 41. Rd7 {[%clk 0:01:22]}  g6 {[%clk 0:00:17]} 42. Nd6 {[%clk 0:01:19]}  Nxd6 {[%clk 0:00:13]} 43. Rxd6 {[%clk 0:01:20]}  Re8 {[%clk 0:00:13]} 44. Rd4 {[%clk 0:01:18]}  Re7 {[%clk 0:00:14]} 45. Kf2 {[%clk 0:01:18]}  Kg7 {[%clk 0:00:14]} 46. Ke3 {[%clk 0:01:19]}  Kf6 {[%clk 0:00:15]} 47. Rd5 {[%clk 0:01:18]}  Rc7 {[%clk 0:00:14]} 48. c4 {[%clk 0:01:18]}  Ke6 {[%clk 0:00:15]} 49. b5 {[%clk 0:01:11]}  axb5 {[%clk 0:00:12]} 50. Rxb5 {[%clk 0:01:12]}  Rf7 {[%clk 0:00:12]} 51. Rb6+ {[%clk 0:01:12]}  Ke5 {[%clk 0:00:12]} 52. Rb5+ {[%clk 0:01:12]}  Ke6 {[%clk 0:00:12]} 53. b4 {[%clk 0:01:09]}  Kd6 {[%clk 0:00:12]} 54. Rd5+ {[%clk 0:01:07]}  Kc6 {[%clk 0:00:12]} 55. e5 {[%clk 0:01:07]}  Rf1 {[%clk 0:00:12]} 56. Rd6+ {[%clk 0:01:04]}  Kc7 {[%clk 0:00:11]} 57. Ke4 {[%clk 0:01:03]}  Re1+ {[%clk 0:00:11]} 58. Kd5 {[%clk 0:01:03]}  Rc1 {[%clk 0:00:11]} 59. c5 {[%clk 0:00:58]}  Rb1 {[%clk 0:00:10]} 60. e6 {[%clk 0:00:53]}  Rd1+ {[%clk 0:00:09]} 61. Ke5 {[%clk 0:00:53]}  Re1+ {[%clk 0:00:07]} 62. Kf6 {[%clk 0:00:52]}  Rf1+ {[%clk 0:00:08]} 63. Kg7 {[%clk 0:00:50]}  Re1 {[%clk 0:00:08]} 64. Kf7 {[%clk 0:00:50]}  Rf1+ {[%clk 0:00:08]} 65. Ke8 {[%clk 0:00:50]}  Re1 {[%clk 0:00:08]} 66. e7 {[%clk 0:00:50]}  g5 {[%clk 0:00:08]} 67. Rf6 {[%clk 0:00:48]}  h5 {[%clk 0:00:07]} 68. Kf7 {[%clk 0:00:49]}  Kd7 {[%clk 0:00:07]} 69. Rd6+ {[%clk 0:00:49]}  Kc7 {[%clk 0:00:08]} 70. e8=Q {[%clk 0:00:49]} 1-0


[Site "https://www.chess.com"]

[Event "Titled Tuesday Blitz June 21 Late 2022"]
[White "Zhurbinsky, David"]
[Black "Dilmukhametov, Artur"]
[WhiteFideId "2072904"]
[BlackFideId "24179922"]
[WhiteElo "2560"]
[BlackElo "2206"]
[Result "0-1"]
[Round "11"]
[TimeControl "180+1"]
[Date "2022.06.22"]
[WhiteClock "0:00:01"]
[BlackClock "0:00:27"]

1. e4 {[%clk 0:02:59]}  e6 {[%clk 0:03:00]} 2. d4 {[%clk 0:02:57]}  d5 {[%clk 0:03:00]} 3. Nc3 {[%clk 0:02:54]}  Bb4 {[%clk 0:03:00]} 4. e5 {[%clk 0:02:53]}  c5 {[%clk 0:02:59]} 5. a3 {[%clk 0:02:53]}  Ba5 {[%clk 0:03:00]} 6. f4 {[%clk 0:02:52]}  Ne7 {[%clk 0:02:57]} 7. Nf3 {[%clk 0:02:47]}  cxd4 {[%clk 0:02:55]} 8. Nxd4 {[%clk 0:02:46]}  Nbc6 {[%clk 0:02:56]} 9. Be3 {[%clk 0:02:43]}  Nxd4 {[%clk 0:02:54]} 10. Bxd4 {[%clk 0:02:43]}  Nf5 {[%clk 0:02:55]} 11. Bc5 {[%clk 0:02:06]}  Bb6 {[%clk 0:02:22]} 12. Bb5+ {[%clk 0:02:02]}  Bd7 {[%clk 0:02:22]} 13. Bxb6 {[%clk 0:01:57]}  Qxb6 {[%clk 0:02:21]} 14. Bxd7+ {[%clk 0:01:56]}  Kxd7 {[%clk 0:02:22]} 15. Qd2 {[%clk 0:01:50]}  Rac8 {[%clk 0:02:08]} 16. O-O-O {[%clk 0:01:38]}  Ne3 {[%clk 0:02:08]} 17. Rde1 {[%clk 0:01:13]}  Nc4 {[%clk 0:02:07]} 18. Na4 {[%clk 0:01:13]}  Qc6 {[%clk 0:01:55]} 19. Qb4 {[%clk 0:00:44]}  Nxa3 {[%clk 0:01:19]} 20. c3 {[%clk 0:00:34]}  Nc4 {[%clk 0:01:18]} 21. f5 {[%clk 0:00:28]}  b5 {[%clk 0:01:15]} 22. fxe6+ {[%clk 0:00:27]}  fxe6 {[%clk 0:01:15]} 23. Rhf1 {[%clk 0:00:26]}  Kc7 {[%clk 0:01:05]} 24. Rf7+ {[%clk 0:00:15]}  Kb8 {[%clk 0:01:05]} 25. Rxg7 {[%clk 0:00:07]}  Ka8 {[%clk 0:01:04]} 26. Qe7 {[%clk 0:00:07]}  Qa6 {[%clk 0:00:56]} 27. b3 {[%clk 0:00:04]}  bxa4 {[%clk 0:00:53]} 28. bxc4 {[%clk 0:00:04]}  Rxc4 {[%clk 0:00:54]} 29. Kd2 {[%clk 0:00:04]}  d4 {[%clk 0:00:49]} 30. Rb1 {[%clk 0:00:03]}  dxc3+ {[%clk 0:00:49]} 31. Kc2 {[%clk 0:00:03]}  a3 {[%clk 0:00:41]} 32. Rb7 {[%clk 0:00:03]}  Ra4 {[%clk 0:00:34]} 33. Qc7 {[%clk 0:00:01]}  Qe2+ {[%clk 0:00:32]} 34. Kb3 {[%clk 0:00:01]}  Qd1+ {[%clk 0:00:32]} 35. Kxc3 {[%clk 0:00:01]}  Qd4+ {[%clk 0:00:27]} 36. Kb3 {[%clk 0:00:01]}  Rb4+ {[%clk 0:00:27]} 37. Kxa3 {[%clk 0:00:01]}  Qb2# {[%clk 0:00:27]} 0-1


[Site "https://www.chess.com"]